bitfinex-derivatives/quotes_ETHF0:USTF0_20250205
["timestamp","ask_amount","ask_price","bid_price","bid_amount"]
[1738744634437,0.00542986,2765.9,2765.6,3.2078]
[1738744634743,0.00542986,2765.9,2765.4,2.70750238]
[1738744635947,0.00542986,2765.9,2765.3,3.21322986]
[1738744636443,3.2078,2765.7,2765.3,0.00542986]
[1738744636648,0.5819,2765.6,2765.3,0.00542986]
[1738744637351,0.00542986,2765.9,2765.4,2.70750238]
[1738744637745,3.2078,2765.5,2765.3,0.00542986]
[1738744638251,0.54,2765.4,2765.3,0.00542986]
[1738744638441,0.54,2765.4,2764.5,2.70750238]
[1738744638646,0.5513,2765.3,2764.5,2.70750238]
[1738744639145,3.2078,2765.2,2764.5,2.70750238]
[1738744639350,0.5513,2765.3,2764.5,2.70750238]
[1738744639752,0.5513,2765.3,2764.6,0.00542986]
[1738744642047,3.2078,2765.2,2764.6,0.00542986]
[1738744642254,3.2078,2765.1,2764.6,0.00542986]
[1738744642951,3.2078,2765.1,2764.8,2.70750238]
[1738744643254,0.5513,2765.3,2764.8,5.91530238]
[1738744643447,0.5511,2765.8,2765.1,5.91530238]
[1738744643646,0.00542986,2765.9,2765.4,5.91530238]
[1738744644056,0.00542986,2765.9,2765.7,5.91530238]
[1738744644445,0.00542986,2765.9,2765.7,2.70750238]
[1738744644847,0.00542986,2765.9,2765.5,4.2982]
[1738744645247,0.00542986,2765.9,2765.5,3.756]
[1738744645854,0.00542986,2765.9,2765.7,2.70750238]
[1738744646055,0.00542986,2765.9,2765.8,3.2078]
[1738744647552,0.00542986,2765.9,2765.5,3.756]
[1738744647749,0.00542986,2765.9,2765.5,3.2078]
[1738744650660,0.00542986,2765.9,2765.8,3.2078]
[1738744652457,0.00542986,2765.9,2765.8,3.77269612]
[1738744654447,0.00542986,2765.9,2765.8,0.56489612]
[1738744656557,0.00542986,2765.9,2765.2,3.2078]
[1738744657256,0.00542986,2765.9,2765.3,1.46909118]
[1738744657650,0.00542986,2765.9,2765.4,1.46909118]
[1738744658456,0.00542986,2765.9,2765.5,1.46909118]
[1738744659061,0.00542986,2765.9,2765.6,0.56503507]
[1738744659961,0.00542986,2765.9,2765.7,0.56503507]
[1738744660660,0.00542986,2765.9,2765.8,1.46897013]
[1738744661263,3.21322986,2765.9,2765.8,1.46897013]
[1738744661462,3.21322986,2765.9,2765.8,0.56503507]
[1738744662060,3.21322986,2765.9,2765.2,3.2078]
[1738744662263,1.1023,2765.8,2765.2,3.2078]
[1738744662462,1.6565,2765.8,2765.3,1.46918468]
[1738744662850,1.6565,2765.8,2765.4,0.56507103]
[1738744663455,1.6565,2765.8,2765.2,3.2078]
[1738744664159,1.6565,2765.8,2765.3,0.56508368]
[1738744664859,1.6565,2765.8,2765.4,0.56508368]
[1738744665062,2.23479,2765.8,2765.4,0.56508368]
[1738744665265,2.23479,2765.8,2765.2,3.2078]
[1738744665457,1.6565,2765.8,2765.2,3.2078]
[1738744665864,3.2078,2765.6,2765.0,0.5434]
[1738744666764,3.2078,2765.6,2765.1,0.56511443]
[1738744667567,3.2078,2765.6,2765.2,0.56511443]
[1738744668065,0.57835,2765.5,2765.2,0.56511443]
[1738744668270,3.78614,2765.6,2765.2,0.56511443]
[1738744668463,3.78614,2765.6,2764.9,3.2078]
[1738744669070,3.2078,2765.3,2764.9,3.2078]
[1738744669266,0.562,2765.2,2764.9,3.2078]
[1738744669670,3.2078,2765.6,2764.9,3.2078]
[1738744670171,3.2078,2765.6,2765.0,1.46922414]
[1738744670766,3.2078,2765.3,2764.9,3.2078]
[1738744671668,3.2078,2765.6,2764.9,3.2078]
[1738744672674,3.2078,2765.6,2765.0,0.56512707]
[1738744673571,3.2078,2765.6,2764.9,3.2078]
[1738744674170,3.2078,2765.6,2765.0,0.5619]
[1738744674768,3.2078,2765.6,2765.1,0.56509496]
[1738744675375,3.2078,2765.6,2765.0,0.5619]
[1738744675576,3.2078,2765.6,2765.1,0.5711]
[1738744678379,3.2078,2765.6,2765.2,0.56508305]
[1738744678878,3.2078,2765.6,2765.1,0.5711]
[1738744679469,3.2078,2765.6,2765.0,0.5619]
[1738744679876,44.0078,2765.6,2765.0,0.5619]
[1738744680080,44.0078,2765.6,2765.1,0.56510941]
[1738744680281,3.2078,2765.6,2765.1,0.56510941]
[1738744680679,3.2078,2765.6,2765.0,0.5619]
[1738744680875,3.2078,2765.6,2765.0,2.72211057]
[1738744681184,0.5688,2765.8,2765.2,3.2078]
[1738744681381,3.21322986,2765.9,2765.3,2.72523638]
[1738744681876,0.00542986,2765.9,2765.6,3.2078]
[1738744682082,0.00542986,2765.9,2765.4,0.5787]
[1738744682281,0.00542986,2765.9,2765.4,2.04768838]
[1738744683684,0.00542986,2765.9,2765.5,0.56502581]
[1738744684104,3.2078,2765.6,2765.5,0.56502581]
[1738744684388,3.2078,2765.6,2765.1,2.978]
[1738744684688,0.5572,2765.5,2765.1,2.978]
[1738744684893,0.5572,2765.5,2765.0,0.5619]
[1738744685387,0.5572,2765.5,2765.1,0.56510123]
[1738744686184,0.5572,2765.5,2765.2,0.56510123]
[1738744686886,0.5572,2765.5,2765.0,0.5619]
[1738744687086,1.13556,2765.5,2764.9,3.2078]
[1738744687286,0.5572,2765.5,2764.9,3.2078]
[1738744688589,0.57838,2765.4,2764.9,3.2078]
[1738744688788,1.13556,2765.5,2764.9,3.2078]
[1738744690792,0.5572,2765.5,2764.9,3.2078]
[1738744690993,0.57842,2765.2,2764.9,3.2078]
[1738744691289,0.5684,2765.1,2764.9,3.2078]
[1738744695193,0.5572,2765.5,2764.9,3.2078]
[1738744697087,1.13556,2765.5,2764.9,3.2078]
[1738744697493,0.5572,2765.5,2764.9,3.2078]
[1738744697691,3.2078,2765.6,2764.9,3.2078]
[1738744697992,0.5709,2765.8,2765.0,2.16021057]
[1738744698197,0.00542986,2765.9,2765.3,2.16021057]
[1738744698388,0.00542986,2765.9,2765.4,0.5881]
[1738744698594,0.00542986,2765.9,2765.6,2.16021057]
[1738744699102,0.00542986,2765.9,2765.4,2.05711618]
[1738744699394,0.00542986,2765.9,2765.7,0.56500622]
[1738744699591,0.00542986,2765.9,2765.5,1.46896631]
[1738744700096,0.00542986,2765.9,2765.6,0.56500622]
[1738744700482,0.00542986,2765.9,2765.4,0.5881]
[1738744701294,0.00542986,2765.9,2765.5,0.56500739]
[1738744702082,0.00542986,2765.9,2765.4,0.5881]
[1738744703187,0.00542986,2765.9,2765.5,0.56499303]
[1738744703890,0.00542986,2765.9,2765.4,0.5881]
[1738744704893,0.00542986,2765.9,2765.5,0.56496771]
[1738744705294,0.00542986,2765.9,2765.6,0.56496771]
[1738744705595,0.00542986,2765.9,2765.7,0.5507]
[1738744705791,3.2078,2766.5,2765.7,1.11566771]
[1738744706095,3.2078,2767.1,2766.3,3.2078]
[1738744706307,3.2078,2767.1,2766.5,2.16021057]
[1738744706604,3.2078,2767.1,2766.4,0.5507]
[1738744707094,0.00542986,2767.0,2766.5,0.00542986]
[1738744708188,0.00542986,2767.0,2766.6,3.2078]
[1738744708394,0.00542986,2767.0,2766.7,0.5674]
[1738744708994,0.00542986,2767.0,2766.7,1.1338]
[1738744715604,0.00542986,2767.0,2766.9,3.2078]
[1738744716501,0.00542986,2767.0,2766.7,1.1338]
[1738744721294,0.00542986,2767.0,2766.5,0.00542986]
[1738744721494,3.2078,2766.8,2766.5,0.00542986]
[1738744721695,1.1174,2766.7,2766.5,0.00542986]
[1738744722903,2.3484,2766.7,2766.5,0.00542986]
[1738744724011,0.57812,2766.6,2765.7,1.098]
[1738744724198,3.2078,2766.3,2765.7,1.098]
[1738744724404,3.2078,2766.0,2765.3,5.36801057]
[1738744724902,3.2078,2766.0,2764.9,2.978]
[1738744724903,3.2078,2765.6,2764.9,3.2078]
[1738744725103,3.2078,2765.6,2764.7,2.16021057]
[1738744725305,3.2078,2765.6,2765.0,0.00542986]
[1738744725510,0.00542986,2765.4,2765.0,0.00542986]
[1738744725908,0.00542986,2765.4,2765.0,2.16564043]
[1738744726113,0.00542986,2765.4,2765.1,3.2078]
[1738744726613,0.00542986,2765.4,2765.2,0.5726]
[1738744726809,0.00542986,2765.4,2765.3,0.5871]
[1738744727006,0.00542986,2765.4,2765.1,3.2078]
[1738744727905,3.2078,2765.2,2765.0,0.00542986]
[1738744728311,0.5731,2765.1,2763.9,4.3687]
[1738744728612,3.2078,2764.8,2764.2,3.2078]
[1738744728813,0.5605,2764.7,2764.2,3.2078]
[1738744729615,0.5605,2764.7,2764.2,3.21322986]
[1738744729806,3.2078,2764.8,2764.2,3.21322986]
[1738744730317,3.2078,2764.3,2764.2,0.00542986]
[1738744730810,0.5605,2764.7,2764.2,0.00542986]
[1738744731010,0.5605,2764.7,2764.2,3.21322986]
[1738744731410,0.5605,2764.7,2764.2,0.00542986]
[1738744731718,0.5605,2764.7,2764.2,3.21322986]
[1738744731919,0.5605,2764.7,2764.2,0.00542986]
[1738744732415,0.5605,2764.7,2764.2,3.21322986]
[1738744732914,3.2078,2764.9,2764.2,3.21322986]
[1738744733115,0.5375,2765.0,2764.3,2.16021057]
[1738744736419,3.2078,2765.5,2764.9,2.16021057]
[1738744736606,3.2078,2765.5,2765.0,1.1238]
[1738744740912,3.2078,2765.5,2764.4,0.5431]
[1738744740913,3.2078,2765.2,2764.4,3.7509]
[1738744741114,3.2078,2765.2,2764.4,4.8696]
[1738744741423,3.2078,2765.2,2764.4,4.3265]
[1738744742018,5.36801057,2765.2,2764.4,4.3265]
[1738744742225,6.59901057,2765.2,2764.4,4.3265]
[1738744742425,3.2078,2764.9,2764.4,4.3265]
[1738744745523,3.2078,2764.9,2764.4,3.2078]
[1738744746222,6.59901057,2765.2,2764.4,3.2078]
[1738744746422,5.36801057,2765.2,2764.4,3.2078]
[1738744746627,5.36801057,2764.9,2764.4,3.2078]
[1738744746829,0.57851,2764.8,2764.4,3.2078]
[1738744747123,2.16021057,2764.6,2764.2,0.00542986]
[1738744747327,0.5622,2764.5,2764.2,0.00542986]
[1738744751122,2.73881057,2764.3,2764.2,0.00542986]
[1738744753040,10.36801057,2764.3,2763.4,0.5393]
[1738744753330,0.5622,2764.5,2763.4,0.5393]
[1738744753331,3.2078,2763.9,2763.4,0.5393]
[1738744753822,3.2078,2763.6,2763.4,0.5393]
[1738744754023,3.2078,2763.6,2763.4,0.00542986]
[1738744754335,3.78656,2763.6,2762.8,0.584]
[1738744754522,3.2078,2763.3,2762.8,0.584]
[1738744755531,3.2078,2763.3,2762.8,0.58942986]
[1738744756431,1.1037,2763.2,2762.8,0.58942986]
[1738744757035,1.1037,2763.2,2762.8,0.00542986]
[1738744757339,3.2078,2763.0,2762.8,0.00542986]
[1738744761147,3.2078,2763.0,2761.8,2.16021057]
[1738744761148,0.57896,2762.6,2761.8,2.16021057]
[1738744761333,0.57896,2762.6,2761.8,1.1004]
[1738744761334,3.2078,2762.3,2761.8,1.1004]
[1738744761739,5.94704057,2762.3,2761.8,1.1004]
[1738744761937,5.94704057,2762.3,2761.4,3.2078]
[1738744761938,5.36801057,2762.0,2761.4,3.2078]
[1738744762139,5.36801057,2761.7,2761.2,1.1377]
[1738744762446,3.2078,2761.6,2761.3,0.00361994]
[1738744764045,2.16021057,2761.4,2761.3,0.00361994]
[1738744764438,3.2078,2761.6,2761.3,0.00361994]
[1738744771647,3.2078,2761.9,2761.5,2.16021057]
[1738744771847,3.2078,2761.9,2761.8,2.16021057]
[1738744773038,3.2078,2761.9,2761.6,0.5639]
[1738744773945,5.37344043,2762.3,2761.6,0.5639]
[1738744774157,3.21322986,2762.3,2761.6,0.5639]
[1738744774443,3.21322986,2762.3,2761.8,2.16021057]
[1738744774851,3.21322986,2762.3,2761.9,0.5388]
[1738744778349,3.21322986,2762.3,2761.9,3.5168]
[1738744778554,3.21322986,2762.3,2762.1,2.16021057]
[1738744779254,0.00542986,2762.3,2761.9,3.5168]
[1738744779854,3.2078,2762.2,2761.9,3.5168]
[1738744780047,3.2078,2762.2,2761.6,0.5639]
[1738744780258,1.12397,2762.1,2761.6,0.5639]
[1738744780450,0.5645,2762.0,2761.6,0.5639]
[1738744783152,3.2078,2762.2,2761.6,0.5639]
[1738744783854,3.2078,2762.2,2761.7,0.56579103]
[1738744784249,3.2078,2762.2,2761.6,0.5639]
[1738744785059,3.2078,2762.2,2761.7,0.56575238]
[1738744785456,3.2078,2762.2,2761.8,0.56575238]
[1738744786460,3.2078,2762.2,2761.6,3.5419]
[1738744787262,3.2078,2762.2,2761.7,0.56577392]
[1738744787855,3.2078,2762.2,2761.6,3.5419]
[1738744787856,3.2078,2762.2,2761.8,0.56577392]
[1738744788555,3.2078,2762.2,2761.6,3.5419]
[1738744788755,0.00542986,2762.3,2761.6,3.5419]
[1738744788955,0.00542986,2762.3,2761.7,0.56576734]
[1738744789173,3.2078,2762.2,2761.7,0.56576734]
[1738744789660,3.2078,2762.2,2761.8,0.56576734]
[1738744789875,3.78685,2762.2,2761.8,0.56576734]
[1738744790160,0.57907,2762.1,2761.8,0.56576734]
[1738744790362,40.8,2762.0,2761.6,2.978]
[1738744790957,0.57907,2762.1,2761.6,2.978]
[1738744791357,44.0078,2762.2,2761.6,2.978]
[1738744791559,44.58685,2762.2,2761.4,0.5796]
[1738744791764,44.0078,2762.2,2761.5,0.56582753]
[1738744791961,44.58685,2762.2,2761.5,0.56582753]
[1738744792163,44.0078,2762.2,2761.5,0.56582753]
[1738744792461,44.0078,2762.2,2761.6,0.56582753]
[1738744793267,44.0078,2762.2,2761.4,0.5796]
[1738744793268,3.2078,2762.2,2761.4,0.5796]
[1738744793864,3.2078,2762.2,2761.5,0.56581244]
[1738744793865,3.78684,2762.2,2761.5,0.56581244]
[1738744794564,3.2078,2761.9,2761.4,0.5796]
[1738744795361,3.2078,2761.9,2761.5,0.56583929]
[1738744795763,3.2078,2761.9,2761.4,0.5796]
[1738744796372,3.2078,2762.2,2761.5,5.36801057]
[1738744796970,3.2078,2762.2,2761.6,0.56575377]
[1738744797367,3.2078,2762.2,2761.7,0.56575377]
[1738744797772,3.2078,2762.2,2761.8,1.12135377]
[1738744798570,3.2078,2762.2,2761.9,0.56575377]
[1738744798973,3.2078,2762.2,2762.0,0.56575377]
[1738744799673,3.2078,2762.2,2761.8,0.5556]
[1738744799864,0.57907,2762.1,2761.6,2.978]
[1738744800064,3.2078,2762.2,2761.6,2.978]
[1738744800672,3.2078,2762.2,2761.7,0.56580022]
[1738744801069,3.2078,2762.2,2761.6,2.978]
[1738744801465,0.00542986,2762.3,2761.8,5.36801057]
[1738744801774,0.00542986,2762.3,2762.1,3.2078]
[1738744801970,0.00542986,2762.3,2762.2,0.5646]
[1738744802274,0.00542986,2762.3,2762.2,1.13026393]
[1738744802976,0.00542986,2762.3,2762.2,0.56566393]
[1738744803179,3.79224986,2762.3,2762.2,0.56566393]
[1738744803372,5.37344043,2762.3,2762.2,0.56566393]
[1738744803674,5.37344043,2762.3,2762.0,2.978]
[1738744803874,1.0995,2762.2,2762.0,2.978]
[1738744804070,2.3305,2762.2,2761.4,0.5646]
[1738744804273,3.78694,2761.8,2761.3,0.00361994]
[1738744804468,3.2078,2761.8,2761.3,0.00361994]
[1738744804672,2.16021057,2762.0,2761.3,0.00361994]
[1738744804874,3.7537,2762.1,2761.3,0.00361994]
[1738744805067,3.7537,2762.1,2761.4,0.56583254]
[1738744805267,3.7537,2762.1,2761.5,5.36801057]
[1738744805470,3.2078,2762.1,2761.6,0.5541]
[1738744805868,3.2078,2762.1,2761.6,1.11993254]
[1738744806269,3.2078,2762.1,2761.7,0.56583254]
[1738744806674,3.2078,2762.1,2761.8,2.16021057]
[1738744806870,3.2078,2762.1,2761.8,3.31024311]
[1738744807268,3.2078,2762.1,2761.6,5.4281]
[1738744807269,3.2078,2762.1,2761.9,0.56583254]
[1738744807981,3.2078,2762.1,2761.6,0.5541]
[1738744808580,3.2078,2762.1,2761.7,0.56577256]
[1738744809278,3.2078,2762.1,2761.8,0.56577256]
[1738744809683,3.2078,2762.1,2761.5,0.5836]
[1738744810185,0.57914,2761.8,2761.3,0.00361994]
[1738744810379,0.5506,2761.7,2761.6,0.56582668]
[1738744810681,3.7584,2761.7,2761.6,0.56582668]
[1738744811076,3.7584,2761.7,2761.3,0.00361994]
[1738744811281,1.1502,2761.6,2761.3,0.00361994]
[1738744811887,5.94722057,2761.4,2761.3,0.00361994]
[1738744812081,5.36801057,2761.4,2760.2,0.5333]
[1738744812282,3.2078,2760.7,2760.0,5.36801057]
[1738744812591,0.5506,2760.6,2760.0,5.36801057]
[1738744812893,0.5506,2760.6,2760.1,0.56610592]
[1738744813287,0.55602986,2760.6,2760.0,6.1858]
[1738744813488,0.55602986,2760.6,2760.0,3.2078]
[1738744814093,2.16021057,2760.5,2760.0,3.2078]
[1738744814691,0.55602986,2760.6,2760.0,3.2078]
[1738744815289,0.549,2760.5,2760.0,3.2078]
[1738744816693,0.55602986,2760.6,2760.0,5.36801057]
[1738744816893,0.00542986,2760.6,2760.0,5.36801057]
[1738744818294,0.00542986,2760.6,2760.3,3.2078]
[1738744818486,0.00542986,2760.6,2760.4,0.5732]
[1738744823090,0.00542986,2760.6,2760.4,3.5512]
[1738744823399,0.00542986,2760.6,2760.5,0.5334]
[1738744823599,0.00542986,2760.6,2760.5,1.1012]
[1738744823800,0.00542986,2760.6,2760.5,1.66714409]
[1738744824798,1.0892,2761.5,2760.5,14.51914409]
[1738744824998,3.2078,2761.6,2761.0,2.16021057]
[1738744825196,3.2078,2761.6,2761.1,1.1468]
[1738744825501,1.7889,2762.0,2761.4,3.2078]
[1738744826004,1.79432986,2762.0,2761.4,3.21322986]
[1738744826799,1.79432986,2762.0,2761.4,0.00542986]
[1738744827001,0.56332986,2762.0,2761.4,0.00542986]
[1738744827202,0.00542986,2762.0,2761.4,3.21322986]
[1738744827399,0.00542986,2762.0,2761.6,2.16021057]
[1738744827901,0.00542986,2762.0,2761.7,0.5876]
[1738744828093,0.00542986,2762.0,2761.7,3.5656]
[1738744828295,0.00542986,2762.0,2761.9,2.16021057]
[1738744828999,0.00542986,2762.0,2761.8,3.749]
[1738744830694,0.00542986,2762.0,2761.7,2.978]
[1738744830899,0.57942986,2762.0,2761.7,2.978]
[1738744831094,0.5645,2761.9,2761.7,2.978]
[1738744833107,0.00542986,2762.0,2761.7,2.978]
[1738744833399,4.34977908,2762.8,2761.9,5.36801057]
[1738744833592,3.7816,2762.9,2762.3,5.36801057]
[1738744833792,1.1116,2763.4,2762.6,2.16021057]
[1738744833793,3.2078,2763.2,2762.6,2.16021057]
[1738744834001,0.5706,2763.4,2763.0,3.2078]
[1738744835407,0.00542986,2763.5,2763.0,3.2078]
[1738744835803,0.56212986,2763.5,2763.0,3.2078]
[1738744836199,0.56212986,2763.5,2762.9,0.00542986]
[1738744837106,0.56212986,2763.5,2763.2,2.16021057]
[1738744837107,0.00542986,2763.5,2763.2,2.16021057]
[1738744837512,0.00542986,2763.5,2763.0,3.2078]
[1738744838705,2.16564043,2763.5,2763.0,3.2078]
[1738744838905,2.16021057,2763.2,2763.0,3.2078]
[1738744839107,0.5743,2763.1,2763.0,3.2078]
[1738744839799,41.3743,2763.1,2762.9,0.00542986]
[1738744840609,0.5743,2763.1,2762.9,0.00542986]
[1738744843611,41.3743,2763.1,2762.9,0.00542986]
[1738744843812,2.16564043,2763.5,2762.9,0.00542986]
[1738744844013,0.5825,2763.4,2762.9,0.00542986]
[1738744844213,3.2078,2763.0,2762.9,0.00542986]
[1738744844816,3.78667,2763.0,2762.9,0.00542986]
[1738744845317,8.78667,2763.0,2762.9,0.00542986]
[1738744846516,8.2078,2763.0,2762.9,0.00542986]
[1738744847015,8.78667,2763.0,2762.9,0.00542986]
[1738744847214,9.92917,2763.0,2762.9,0.00542986]
[1738744847718,0.57893,2762.8,2762.1,2.978]
[1738744847915,3.2078,2762.6,2762.0,0.5469]
[1738744848415,2.3725,2763.0,2762.0,2.70711057]
[1738744848614,2.3725,2763.0,2762.1,3.2078]
[1738744848816,2.3725,2763.0,2762.2,0.00542986]
[1738744849219,1.789,2763.0,2762.4,3.2078]
[1738744849522,3.2078,2762.8,2762.2,0.58662986]
[1738744850122,3.2078,2762.5,2762.2,0.00542986]
[1738744850418,0.559,2763.0,2762.3,5.36801057]
[1738744850917,3.2078,2763.1,2762.4,3.5592]
[1738744851617,0.5522,2763.3,2762.6,5.36801057]
[1738744851825,0.5522,2763.3,2762.7,0.5331]
[1738744852915,0.53732986,2763.5,2762.7,0.5331]
[1738744852916,0.53732986,2763.5,2762.9,3.2078]
[1738744853324,3.74512986,2763.5,2762.7,0.5331]
[1738744855015,2.73901057,2763.4,2762.7,0.5331]
[1738744855418,3.74512986,2763.5,2762.7,0.5331]
[1738744856624,2.73900057,2763.4,2762.7,0.5331]
[1738744856915,3.74512986,2763.5,2762.7,0.5331]
[1738744857318,2.16021057,2763.4,2762.7,0.5331]
[1738744857523,42.96021057,2763.4,2762.7,0.5331]
[1738744857712,0.5624,2763.3,2762.7,0.5331]
[1738744858212,3.2078,2763.2,2762.4,3.5592]
[1738744858719,0.5604,2763.1,2762.4,3.5592]
[1738744859323,0.5604,2763.1,2762.6,3.2078]
[1738744859622,0.5624,2763.3,2762.7,3.2078]
[1738744859820,0.5624,2763.3,2762.4,3.5592]
[1738744860024,0.5624,2763.3,2762.6,3.2078]
[1738744860429,0.5624,2763.3,2762.4,3.5592]
[1738744860927,3.2078,2762.9,2762.4,3.5592]
[1738744861219,0.5492,2762.8,2762.4,3.5592]
[1738744861619,1.0978,2762.8,2762.4,3.5592]
[1738744862821,1.0978,2762.8,2762.4,0.5812]
[1738744863025,1.0978,2762.8,2762.3,3.7708]
[1738744863421,3.25801057,2762.8,2762.3,3.7708]
[1738744865321,3.2078,2762.5,2762.3,0.563]
[1738744865523,6.46581057,2762.8,2762.3,0.563]
[1738744868319,6.46581057,2762.8,2762.2,0.00542986]
[1738744868521,2.16021057,2762.5,2762.2,0.00542986]
[1738744868825,0.5663,2762.7,2762.2,0.00542986]
[1738744869025,1.14524,2762.7,2762.2,0.00542986]
[1738744869221,0.5663,2762.7,2762.2,0.00542986]
[1738744869428,1.14525,2762.7,2762.2,0.00542986]
[1738744869821,41.94525,2762.7,2762.2,0.00542986]
[1738744870226,0.5663,2762.7,2762.2,0.00542986]
[1738744870428,4.3056,2762.8,2762.2,0.00542986]
[1738744870825,4.3056,2762.8,2762.3,0.56566337]
[1738744871030,6.46581057,2762.8,2762.3,0.56566337]
[1738744871329,6.46581057,2762.8,2762.2,0.00542986]
[1738744871827,6.99951057,2762.8,2762.2,0.00542986]
[1738744872128,0.57894,2762.7,2762.2,0.00542986]
[1738744872329,6.99951057,2762.8,2762.2,0.00542986]
[1738744872528,7.57844057,2762.8,2762.2,0.00542986]
[1738744873123,6.99951057,2762.8,2762.2,0.00542986]
[1738744873520,4.8393,2762.8,2762.2,0.00542986]
[1738744873724,4.3056,2762.8,2762.2,0.00542986]
[1738744874120,3.2078,2762.8,2762.3,5.13821057]
[1738744874320,0.5742,2763.3,2762.6,2.16021057]
[1738744874527,0.5742,2763.3,2762.7,1.1285]
[1738744875026,0.5742,2763.3,2762.8,0.56562687]
[1738744875429,3.21322986,2763.5,2762.7,1.1285]
[1738744876238,3.21322986,2763.5,2762.8,0.56553911]
[1738744876426,3.21322986,2763.5,2762.7,1.1285]
[1738744876733,2.16021057,2763.4,2762.7,1.1285]
[1738744877132,3.21322986,2763.5,2762.8,0.56555511]
[1738744877325,3.21322986,2763.5,2762.9,2.16021057]
[1738744877527,3.21322986,2763.5,2763.0,0.56555511]
[1738744877730,3.21322986,2763.5,2763.1,2.978]
[1738744878426,0.00542986,2763.5,2763.1,6.1858]
[1738744878621,0.00542986,2763.5,2763.2,2.69301057]
[1738744880032,0.00542986,2763.5,2763.3,0.56540969]
[1738744880333,0.00542986,2763.5,2763.4,0.5778]
[1738744880729,0.00542986,2763.5,2763.1,2.978]
[1738744881628,0.00542986,2763.5,2763.1,6.1858]
[1738744882941,0.00542986,2763.5,2763.2,0.56541347]
[1738744883132,0.00542986,2763.5,2763.2,2.72562404]
[1738744883334,0.00542986,2763.5,2763.3,0.5606]
[1738744883737,0.00542986,2763.5,2763.3,3.5386]
[1738744884329,0.00542986,2763.5,2763.4,3.2078]
[1738744884533,0.00542986,2763.5,2763.4,6.1858]
[1738744884838,0.00542986,2763.5,2763.4,6.75117855]
[1738744885228,0.00542986,2763.5,2763.4,2.978]
[1738744885433,0.56332986,2763.5,2763.4,2.978]
[1738744886225,0.56332986,2763.5,2763.1,3.2078]
[1738744887036,0.00542986,2763.5,2763.1,3.2078]
[1738744887738,0.00542986,2763.5,2763.4,3.2078]
[1738744887933,0.00542986,2763.5,2763.4,6.1858]
[1738744888630,0.00542986,2763.5,2763.4,6.7511741]
[1738744890939,0.00542986,2763.5,2763.4,6.1858]
[1738744894944,3.2078,2764.2,2763.4,11.75115108]
[1738744895138,3.2078,2764.2,2763.6,2.16021057]
[1738744895849,3.2078,2764.2,2763.6,2.74491057]
[1738744896345,3.21322986,2764.2,2763.7,0.5653196]
[1738744897146,3.21322986,2764.2,2763.6,0.00542986]
[1738744899145,3.21322986,2764.2,2763.6,2.16564043]
[1738744899846,3.21322986,2764.2,2763.7,0.56532985]
[1738744900647,0.533,2764.1,2763.6,0.00542986]
[1738744900845,3.2078,2763.9,2763.6,0.00542986]
[1738744901040,0.562,2764.0,2763.6,0.00542986]
[1738744901238,3.21322986,2764.2,2763.6,2.16564043]
[1738744901540,0.00542986,2764.2,2763.9,2.16021057]
[1738744901745,0.00542986,2764.2,2764.0,0.5667]
[1738744901947,0.00542986,2764.2,2764.0,3.5447]
[1738744904645,0.00542986,2764.2,2764.1,0.56526524]
[1738744906352,0.5481,2764.8,2764.1,13.64706524]
[1738744906651,0.5481,2764.8,2764.2,2.16021057]
[1738744907050,0.5481,2764.8,2764.3,0.56526524]
[1738744907453,0.55352986,2764.8,2764.3,0.56526524]
[1738744907657,0.55352986,2764.8,2764.4,0.56526524]
[1738744908547,0.55352986,2764.8,2764.2,2.16021057]
[1738744909147,0.55352986,2764.8,2764.3,0.56521286]
[1738744909351,0.55352986,2764.8,2764.4,0.56521286]
[1738744909551,3.76132986,2764.8,2764.4,0.56521286]
[1738744909749,0.57859,2764.4,2764.1,4.874]
[1738744909949,0.57859,2764.4,2764.0,2.978]
[1738744909950,1.1268,2764.3,2763.8,3.2078]
[1738744910256,40.8,2764.2,2763.8,3.2078]
[1738744910554,1.1268,2764.3,2763.8,3.2078]
[1738744910856,0.5734,2764.3,2763.9,2.16021057]
[1738744911057,0.5734,2764.3,2763.9,2.71171057]
[1738744911457,0.5734,2764.3,2763.9,0.5515]
[1738744912447,0.5734,2764.3,2763.8,3.2078]
[1738744912956,0.54,2764.2,2763.6,0.00542986]
[1738744913159,0.5861,2764.1,2763.6,0.00542986]
[1738744913359,1.16475,2764.1,2763.6,0.00542986]
[1738744914157,0.5861,2764.1,2763.6,0.00542986]
[1738744914366,2.16021057,2764.0,2763.6,0.00542986]
[1738744914552,2.73888057,2764.0,2763.6,0.00542986]
[1738744915154,5.36801057,2763.7,2763.6,0.00542986]
[1738744915553,5.91281057,2763.7,2763.6,0.00542986]
[1738744916059,5.91281057,2763.7,2763.0,2.978]
[1738744916060,6.49154057,2763.7,2763.0,2.978]
[1738744916265,0.5618,2763.6,2762.8,3.2078]
[1738744916457,0.5324,2763.5,2762.8,3.2078]
[1738744917158,0.5324,2763.5,2762.9,0.00542986]
[1738744918256,3.2078,2763.3,2762.9,0.00542986]
[1738744918560,3.78661,2763.3,2762.9,0.00542986]
[1738744918757,3.2078,2763.3,2762.9,0.00542986]
[1738744919260,0.5671,2763.2,2762.9,0.00542986]
[1738744919452,1.14593,2763.2,2762.9,0.00542986]
[1738744919661,0.5671,2763.2,2762.9,0.00542986]
[1738744920363,3.2078,2763.0,2762.0,3.2078]
[1738744920556,3.2078,2762.7,2762.0,3.2078]
[1738744920759,3.2078,2762.7,2762.0,5.36801057]
[1738744920957,3.2078,2762.7,2762.1,1.1316]
[1738744921450,3.2078,2762.7,2762.1,1.13702986]
[1738744921852,3.2078,2762.7,2762.1,0.57992986]
[1738744922254,3.2078,2762.3,2762.1,0.00542986]
[1738744923259,1.0904,2762.2,2762.1,0.00542986]
[1738744923464,1.0904,2762.2,2760.8,10.01221057]
[1738744923465,4.47861057,2762.2,2760.8,10.01221057]
[1738744923757,3.2078,2761.5,2760.8,1.1154]
[1738744923966,2.16021057,2761.0,2760.6,3.2078]
[1738744924362,2.16021057,2760.7,2759.7,0.5617]
[1738744924665,0.00542986,2760.5,2759.9,5.36801057]
[1738744925459,0.00542986,2760.5,2760.2,3.2078]